[Event "*** Titled Tuesday 3|2 Blitz (Late)"]
[Site "Chess.com"]
[Date "2017.01.03"]
[Round "9"]
[White "norwaytoadog"]
[Black "Assasin14"]
[Result "0-1"]
[WhiteElo "1966"]
[BlackElo "2234"]
[TimeControl "180+2"]
[EndTime "18:50:02 PST"]
[Termination "Assasin14 won by resignation"]

1. e4 {[%clk 0:03:02]} 1... c5 {[%clk 0:03:00.1]} 2. Nf3 {[%clk 0:03:02.6]} 2...
d6 {[%clk 0:03:01.6]} 3. Bb5+ {[%clk 0:03:03]} 3... Bd7 {[%clk 0:03:02.1]} 4.
Bxd7+ {[%clk 0:03:03.7]} 4... Qxd7 {[%clk 0:03:04]} 5. O-O {[%clk 0:03:03.3]}
5... Nc6 {[%clk 0:03:00.5]} 6. Qe2 {[%clk 0:03:03.6]} 6... Nf6 {[%clk
0:03:00.5]} 7. Rd1 {[%clk 0:03:03.1]} 7... e6 {[%clk 0:03:01.1]} 8. d4 {[%clk
0:03:01.6]} 8... cxd4 {[%clk 0:03:03]} 9. Nxd4 {[%clk 0:03:01.8]} 9... Be7
{[%clk 0:03:03.9]} 10. c4 {[%clk 0:02:59.1]} 10... O-O {[%clk 0:03:03]} 11. Nc3
{[%clk 0:02:58.6]} 11... a6 {[%clk 0:02:56.7]} 12. b3 {[%clk 0:02:58.7]} 12...
Rfd8 {[%clk 0:02:47.8]} 13. Bb2 {[%clk 0:02:58.4]} 13... Rab8 {[%clk 0:02:44.4]}
14. Nxc6 {[%clk 0:02:46.6]} 14... Qxc6 {[%clk 0:02:43.5]} 15. Rd3 {[%clk
0:02:46.6]} 15... b5 {[%clk 0:02:39.9]} 16. cxb5 {[%clk 0:02:42.3]} 16... axb5
{[%clk 0:02:37.7]} 17. Rg3 {[%clk 0:02:24.8]} 17... b4 {[%clk 0:02:21.6]} 18.
Nd1 {[%clk 0:01:31.5]} 18... Qb5 {[%clk 0:02:01.2]} 19. Qxb5 {[%clk 0:01:27.1]}
19... Rxb5 {[%clk 0:02:03.1]} 20. Ne3 {[%clk 0:01:26.6]} 20... Rc8 {[%clk
0:01:55.7]} 21. Nc4 {[%clk 0:01:20.9]} 21... g6 {[%clk 0:00:51.1]} 22. Re1
{[%clk 0:00:58.2]} 22... d5 {[%clk 0:00:47.5]} 23. exd5 {[%clk 0:00:52.1]} 23...
Nxd5 {[%clk 0:00:41.7]} 24. Rd3 {[%clk 0:00:44.1]} 24... Ra8 {[%clk 0:00:34.4]}
25. Ra1 {[%clk 0:00:38]} 0-1

[Event "*** Titled Tuesday 3|2 Blitz (Late)"]
[Site "Chess.com"]
[Date "2017.01.03"]
[Round "9"]
[White "QuintilianoR"]
[Black "Ez_Chess2016"]
[Result "1-0"]
[WhiteElo "2498"]
[BlackElo "1987"]
[TimeControl "180+2"]
[EndTime "18:50:18 PST"]
[Termination "QuintilianoR won by resignation"]

1. d4 {[%clk 0:03:02]} 1... Nf6 {[%clk 0:03:00.5]} 2. Nf3 {[%clk 0:03:03]} 2...
g6 {[%clk 0:02:58.9]} 3. Bf4 {[%clk 0:03:03.9]} 3... Bg7 {[%clk 0:02:59.9]} 4.
e3 {[%clk 0:03:05]} 4... O-O {[%clk 0:03:00.8]} 5. h3 {[%clk 0:03:06.5]} 5... c5
{[%clk 0:02:58.4]} 6. c3 {[%clk 0:03:06.7]} 6... b6 {[%clk 0:02:51.4]} 7. Nbd2
{[%clk 0:02:42.4]} 7... Bb7 {[%clk 0:02:51.1]} 8. Be2 {[%clk 0:02:41.5]} 8... d6
{[%clk 0:02:50.8]} 9. a4 {[%clk 0:02:42.2]} 9... a6 {[%clk 0:02:51.1]} 10. O-O
{[%clk 0:02:42.6]} 10... Nbd7 {[%clk 0:02:52]} 11. Bh2 {[%clk 0:02:43.4]} 11...
Ra7 {[%clk 0:02:50.8]} 12. Qb3 {[%clk 0:02:40.2]} 12... Qa8 {[%clk 0:02:48.4]}
13. Rfc1 {[%clk 0:02:38]} 13... Ne4 {[%clk 0:02:39.6]} 14. Nxe4 {[%clk
0:02:36.4]} 14... Bxe4 {[%clk 0:02:41.5]} 15. Qd1 {[%clk 0:02:30.5]} 15... Rc8
{[%clk 0:02:20.8]} 16. Qf1 {[%clk 0:02:17.2]} 16... Bc6 {[%clk 0:01:41.6]} 17.
Nd2 {[%clk 0:02:14]} 17... b5 {[%clk 0:01:04.6]} 18. axb5 {[%clk 0:01:55.7]}
18... axb5 {[%clk 0:01:04.9]} 19. b4 {[%clk 0:01:33.4]} 19... Qb7 {[%clk
0:00:42.4]} 20. Rxa7 {[%clk 0:01:30.5]} 20... Qxa7 {[%clk 0:00:39.2]} 21. Bxb5
{[%clk 0:01:31.4]} 21... Bxb5 {[%clk 0:00:31.3]} 22. Qxb5 {[%clk 0:01:31.4]}
22... cxb4 {[%clk 0:00:22.8]} 23. Qxb4 {[%clk 0:01:29]} 23... Rb8 {[%clk
0:00:16.4]} 24. Qc4 {[%clk 0:01:22.6]} 24... Qa3 {[%clk 0:00:06.5]} 25. Rf1
{[%clk 0:01:13.6]} 25... Rb2 {[%clk 0:00:07.4]} 26. Qd3 {[%clk 0:01:05.9]} 26...
Nf6 {[%clk 0:00:04.6]} 27. Nc4 {[%clk 0:01:06.2]} 27... Qa6 {[%clk 0:00:03.7]}
28. Nxb2 {[%clk 0:01:07.2]} 1-0

[Event "*** Titled Tuesday 3|2 Blitz (Late)"]
[Site "Chess.com"]
[Date "2017.01.03"]
[Round "9"]
[White "jcgs1030"]
[Black "yian123"]
[Result "1-0"]
[WhiteElo "2344"]
[BlackElo "2372"]
[TimeControl "180+2"]
[EndTime "18:50:41 PST"]
[Termination "jcgs1030 won by checkmate"]

1. e4 {[%clk 0:03:02]} 1... e5 {[%clk 0:02:58.9]} 2. Nf3 {[%clk 0:03:00.8]} 2...
Nc6 {[%clk 0:02:59.4]} 3. Bb5 {[%clk 0:03:01.6]} 3... a6 {[%clk 0:02:59.9]} 4.
Ba4 {[%clk 0:03:02.7]} 4... Nf6 {[%clk 0:02:57.2]} 5. O-O {[%clk 0:03:03.4]}
5... Be7 {[%clk 0:02:57.9]} 6. Re1 {[%clk 0:02:42]} 6... b5 {[%clk 0:02:56]} 7.
Bb3 {[%clk 0:02:42.8]} 7... d6 {[%clk 0:02:57.1]} 8. a4 {[%clk 0:02:41.5]} 8...
Bd7 {[%clk 0:02:55.1]} 9. axb5 {[%clk 0:02:40.9]} 9... axb5 {[%clk 0:02:55.6]}
10. Rxa8 {[%clk 0:02:42.8]} 10... Qxa8 {[%clk 0:02:56.7]} 11. Nc3 {[%clk
0:02:44.4]} 11... Na5 {[%clk 0:02:55.3]} 12. Ba2 {[%clk 0:02:43.1]} 12... b4
{[%clk 0:02:50.9]} 13. Nd5 {[%clk 0:02:43.7]} 13... Nxd5 {[%clk 0:02:51.2]} 14.
Bxd5 {[%clk 0:02:45.6]} 14... c6 {[%clk 0:02:51.8]} 15. Ba2 {[%clk 0:02:45.3]}
15... b3 {[%clk 0:02:47]} 16. cxb3 {[%clk 0:02:43.8]} 16... c5 {[%clk 0:02:41]}
17. b4 {[%clk 0:02:40.4]} 17... cxb4 {[%clk 0:02:39.4]} 18. Bd5 {[%clk
0:02:41.4]} 18... Bc6 {[%clk 0:02:30.2]} 19. d4 {[%clk 0:02:41.8]} 19... Bxd5
{[%clk 0:02:25.6]} 20. exd5 {[%clk 0:02:42.3]} 20... O-O {[%clk 0:02:22.6]} 21.
dxe5 {[%clk 0:02:41.9]} 21... dxe5 {[%clk 0:02:23.3]} 22. Nxe5 {[%clk
0:02:31.2]} 22... Rd8 {[%clk 0:02:17.6]} 23. Nxf7 {[%clk 0:02:00.4]} 23... Kxf7
{[%clk 0:02:15]} 24. Qh5+ {[%clk 0:01:59.3]} 24... Kf8 {[%clk 0:02:15.3]} 25. d6
{[%clk 0:01:33.7]} 25... Bf6 {[%clk 0:01:50.8]} 26. Bd2 {[%clk 0:01:21.1]} 26...
Nc6 {[%clk 0:01:39.8]} 27. Qxh7 {[%clk 0:01:17.4]} 27... Qa2 {[%clk 0:01:38]}
28. Qe4 {[%clk 0:01:10]} 28... Qxb2 {[%clk 0:01:23.2]} 29. Bf4 {[%clk 0:01:09]}
29... Qd4 {[%clk 0:00:34.2]} 30. Qf5 {[%clk 0:01:00.6]} 30... b3 {[%clk
0:00:24.4]} 31. g4 {[%clk 0:00:52.1]} 31... g6 {[%clk 0:00:15.6]} 32. Bh6+
{[%clk 0:00:51.6]} 32... Kf7 {[%clk 0:00:16.2]} 33. Qe6# {[%clk 0:00:52.1]} 1-0

[Event "*** Titled Tuesday 3|2 Blitz (Late)"]
[Site "Chess.com"]
[Date "2017.01.03"]
[Round "9"]
[White "HouseOfDurin"]
[Black "eltenedor"]
[Result "1-0"]
[WhiteElo "1883"]
[BlackElo "2005"]
[TimeControl "180+2"]
[EndTime "18:50:50 PST"]
[Termination "HouseOfDurin won on time"]

1. d4 {[%clk 0:03:02]} 1... d5 {[%clk 0:02:58.5]} 2. c4 {[%clk 0:03:02.9]} 2...
dxc4 {[%clk 0:02:59.3]} 3. Nc3 {[%clk 0:03:04.4]} 3... a6 {[%clk 0:02:59.3]} 4.
a4 {[%clk 0:03:04.7]} 4... Nc6 {[%clk 0:03:00.4]} 5. Nf3 {[%clk 0:03:03.7]} 5...
Nf6 {[%clk 0:02:57.2]} 6. e4 {[%clk 0:02:57.1]} 6... Bg4 {[%clk 0:02:50.5]} 7.
d5 {[%clk 0:02:53.1]} 7... Ne5 {[%clk 0:02:45.9]} 8. Be2 {[%clk 0:02:54.3]} 8...
Bxf3 {[%clk 0:02:43.4]} 9. gxf3 {[%clk 0:02:55.5]} 9... c6 {[%clk 0:02:23.4]}
10. f4 {[%clk 0:02:23.3]} 10... Nd3+ {[%clk 0:02:20.4]} 11. Bxd3 {[%clk
0:02:23]} 11... cxd3 {[%clk 0:02:21.1]} 12. Qxd3 {[%clk 0:02:19.7]} 12... e6
{[%clk 0:02:12.4]} 13. Be3 {[%clk 0:01:56.3]} 13... Bb4 {[%clk 0:01:58]} 14. d6
{[%clk 0:01:28.1]} 14... Qa5 {[%clk 0:01:31.3]} 15. e5 {[%clk 0:01:19.8]} 15...
Nd5 {[%clk 0:01:23.4]} 16. Bd2 {[%clk 0:01:18.8]} 16... O-O-O {[%clk 0:01:09.6]}
17. O-O {[%clk 0:00:48.1]} 17... Rhg8 {[%clk 0:01:03.1]} 18. Rac1 {[%clk
0:00:24.2]} 18... Bxc3 {[%clk 0:00:54.9]} 19. bxc3 {[%clk 0:00:19.2]} 19... Qxa4
{[%clk 0:00:53.2]} 20. c4 {[%clk 0:00:20.5]} 20... Nb6 {[%clk 0:00:39.3]} 21.
Be3 {[%clk 0:00:21.5]} 21... Nd7 {[%clk 0:00:36.7]} 22. Ra1 {[%clk 0:00:21.1]}
22... Qb4 {[%clk 0:00:32.7]} 23. Rfb1 {[%clk 0:00:22.5]} 23... Nc5 {[%clk
0:00:30.6]} 24. Qc2 {[%clk 0:00:12.2]} 24... Nb3 {[%clk 0:00:04]} 25. Rxb3
{[%clk 0:00:12.7]} 1-0

[Event "*** Titled Tuesday 3|2 Blitz (Late)"]
[Site "Chess.com"]
[Date "2017.01.03"]
[Round "9"]
[White "amurdercastle"]
[Black "Abrito99"]
[Result "0-1"]
[WhiteElo "2336"]
[BlackElo "2352"]
[TimeControl "180+2"]
[EndTime "18:51:35 PST"]
[Termination "Abrito99 won on time"]

1. d4 {[%clk 0:03:02]} 1... Nf6 {[%clk 0:03:00.3]} 2. c4 {[%clk 0:03:00]} 2...
e6 {[%clk 0:03:01]} 3. Nf3 {[%clk 0:03:00.7]} 3... c5 {[%clk 0:02:56.9]} 4. d5
{[%clk 0:03:01.6]} 4... b5 {[%clk 0:02:57.8]} 5. Bg5 {[%clk 0:02:48.4]} 5...
exd5 {[%clk 0:02:54.6]} 6. cxd5 {[%clk 0:02:44]} 6... d6 {[%clk 0:02:55.7]} 7.
Nbd2 {[%clk 0:02:16.2]} 7... Be7 {[%clk 0:02:49.8]} 8. e4 {[%clk 0:02:11.7]}
8... a6 {[%clk 0:02:40.6]} 9. Bf4 {[%clk 0:02:04.6]} 9... O-O {[%clk 0:02:30.9]}
10. Bd3 {[%clk 0:02:03.3]} 10... Nbd7 {[%clk 0:02:31.1]} 11. O-O {[%clk
0:01:54.4]} 11... Re8 {[%clk 0:02:12.5]} 12. b3 {[%clk 0:01:47.6]} 12... Nh5
{[%clk 0:01:56.8]} 13. Be3 {[%clk 0:01:31]} 13... Bf6 {[%clk 0:01:57.9]} 14. Rc1
{[%clk 0:01:30.2]} 14... g6 {[%clk 0:01:59.3]} 15. Re1 {[%clk 0:01:14]} 15...
Bg7 {[%clk 0:01:41.2]} 16. Bg5 {[%clk 0:01:13]} 16... Qa5 {[%clk 0:01:41.7]} 17.
Qc2 {[%clk 0:01:12.1]} 17... h6 {[%clk 0:01:36.9]} 18. Be3 {[%clk 0:01:08]}
18... Bb7 {[%clk 0:01:33.5]} 19. Nf1 {[%clk 0:01:01.4]} 19... Re7 {[%clk
0:01:33.5]} 20. Bd2 {[%clk 0:00:58]} 20... Qb6 {[%clk 0:01:16.3]} 21. Ng3 {[%clk
0:00:57.5]} 21... Nhf6 {[%clk 0:01:14.1]} 22. Bc3 {[%clk 0:00:54]} 22... Rae8
{[%clk 0:01:15.7]} 23. Ba1 {[%clk 0:00:53.2]} 23... Ng4 {[%clk 0:01:12.8]} 24.
Bxg7 {[%clk 0:00:52.9]} 24... Kxg7 {[%clk 0:01:14.4]} 25. Qb2+ {[%clk
0:00:53.8]} 25... Kg8 {[%clk 0:01:15.2]} 26. h3 {[%clk 0:00:54.8]} 26... Nge5
{[%clk 0:01:15.9]} 27. Nxe5 {[%clk 0:00:56.2]} 27... Nxe5 {[%clk 0:01:17.2]} 28.
Bb1 {[%clk 0:00:54.6]} 28... c4 {[%clk 0:01:17]} 29. Kh2 {[%clk 0:00:48.8]}
29... cxb3 {[%clk 0:01:16.7]} 30. axb3 {[%clk 0:00:48.8]} 30... h5 {[%clk
0:01:14.8]} 31. f4 {[%clk 0:00:41.9]} 31... h4 {[%clk 0:01:16.1]} 32. Nf1 {[%clk
0:00:27.8]} 32... Nd7 {[%clk 0:01:17.1]} 33. Qd2 {[%clk 0:00:25.7]} 33... Nf6
{[%clk 0:01:16.2]} 34. e5 {[%clk 0:00:24.6]} 34... dxe5 {[%clk 0:01:14.8]} 35.
d6 {[%clk 0:00:25.8]} 35... Re6 {[%clk 0:01:11.2]} 36. fxe5 {[%clk 0:00:24.6]}
36... Rxe5 {[%clk 0:00:36.3]} 37. Rxe5 {[%clk 0:00:09.7]} 37... Rxe5 {[%clk
0:00:37.7]} 38. Qf4 {[%clk 0:00:04]} 38... Qxd6 {[%clk 0:00:36.1]} 0-1

[Event "*** Titled Tuesday 3|2 Blitz (Late)"]
[Site "Chess.com"]
[Date "2017.01.03"]
[Round "9"]
[White "chesstatour"]
[Black "Shivagami"]
[Result "1-0"]
[WhiteElo "1809"]
[BlackElo "1974"]
[TimeControl "180+2"]
[EndTime "18:51:37 PST"]
[Termination "chesstatour won by resignation"]

1. c4 {[%clk 0:03:02]} 1... e5 {[%clk 0:02:59.6]} 2. Nc3 {[%clk 0:03:03.4]} 2...
Nc6 {[%clk 0:02:56.4]} 3. g3 {[%clk 0:03:03.8]} 3... Bb4 {[%clk 0:02:55.4]} 4.
Bg2 {[%clk 0:03:04.6]} 4... Nf6 {[%clk 0:02:54.4]} 5. Nf3 {[%clk 0:03:04.2]}
5... d6 {[%clk 0:02:49.9]} 6. O-O {[%clk 0:03:03.4]} 6... Bxc3 {[%clk
0:02:47.9]} 7. bxc3 {[%clk 0:03:03.5]} 7... O-O {[%clk 0:02:49.4]} 8. d3 {[%clk
0:03:03.5]} 8... e4 {[%clk 0:02:36.9]} 9. Ng5 {[%clk 0:03:00.7]} 9... exd3
{[%clk 0:02:36]} 10. exd3 {[%clk 0:03:00.3]} 10... h6 {[%clk 0:02:36.4]} 11. Nh3
{[%clk 0:02:58.2]} 11... Bg4 {[%clk 0:02:32.1]} 12. Qc2 {[%clk 0:02:58.1]} 12...
Qd7 {[%clk 0:02:31.3]} 13. Nf4 {[%clk 0:02:58]} 13... g5 {[%clk 0:02:16.5]} 14.
Nd5 {[%clk 0:02:56.9]} 14... Nxd5 {[%clk 0:02:15.3]} 15. cxd5 {[%clk 0:02:58.8]}
15... Ne5 {[%clk 0:02:14.4]} 16. f4 {[%clk 0:02:42.1]} 16... gxf4 {[%clk
0:02:00.8]} 17. gxf4 {[%clk 0:01:46.8]} 17... Ng6 {[%clk 0:01:55.9]} 18. f5
{[%clk 0:01:45.1]} 18... Bxf5 {[%clk 0:01:48.6]} 19. Bxh6 {[%clk 0:01:43.6]}
19... Rfe8 {[%clk 0:01:49.3]} 20. Rf2 {[%clk 0:01:26.3]} 20... Kh7 {[%clk
0:01:28.2]} 21. Raf1 {[%clk 0:01:20.2]} 21... Nh4 {[%clk 0:01:14.1]} 22. Bg5
{[%clk 0:01:12]} 22... Nxg2 {[%clk 0:00:49.6]} 23. Rxf5 {[%clk 0:01:06.7]} 23...
Kg6 {[%clk 0:00:08.2]} 24. Qxg2 {[%clk 0:00:33.7]} 24... Qxf5 {[%clk 0:00:07.3]}
25. Bh4+ {[%clk 0:00:32.4]} 25... Kh6 {[%clk 0:00:02.3]} 26. Rxf5 {[%clk
0:00:30.9]} 26... Rg8 {[%clk 0:00:04]} 27. Bg3 {[%clk 0:00:28.1]} 27... Rg6
{[%clk 0:00:03.4]} 28. Qf3 {[%clk 0:00:24]} 28... Rag8 {[%clk 0:00:02.2]} 29.
Rxf7 {[%clk 0:00:20.1]} 29... c6 {[%clk 0:00:03.7]} 30. Qf4+ {[%clk 0:00:18]}
30... Kh5 {[%clk 0:00:03.9]} 31. Rf5+ {[%clk 0:00:17.7]} 31... Rg5 {[%clk
0:00:04.9]} 32. Rxg5+ {[%clk 0:00:17.1]} 32... Rxg5 {[%clk 0:00:06.8]} 33. dxc6
{[%clk 0:00:16.9]} 33... bxc6 {[%clk 0:00:07.3]} 34. h4 {[%clk 0:00:14.2]} 34...
Rg4 {[%clk 0:00:07.7]} 35. Qf3 {[%clk 0:00:15.3]} 1-0

[Event "*** Titled Tuesday 3|2 Blitz (Late)"]
[Site "Chess.com"]
[Date "2017.01.03"]
[Round "9"]
[White "aspired"]
[Black "Hamisandwich"]
[Result "1-0"]
[WhiteElo "2484"]
[BlackElo "2401"]
[TimeControl "180+2"]
[EndTime "18:51:59 PST"]
[Termination "aspired won on time"]

1. e4 {[%clk 0:03:02]} 1... d6 {[%clk 0:02:59.7]} 2. d4 {[%clk 0:03:02]} 2...
Nf6 {[%clk 0:03:01.1]} 3. Nc3 {[%clk 0:03:03.4]} 3... e5 {[%clk 0:03:02.5]} 4.
Nf3 {[%clk 0:03:04.6]} 4... Nbd7 {[%clk 0:03:03.2]} 5. Bc4 {[%clk 0:03:05.6]}
5... Be7 {[%clk 0:03:04.4]} 6. O-O {[%clk 0:03:06.1]} 6... O-O {[%clk
0:03:05.5]} 7. a4 {[%clk 0:03:06.2]} 7... c6 {[%clk 0:03:06.1]} 8. h3 {[%clk
0:03:05.4]} 8... Qc7 {[%clk 0:03:04.3]} 9. Ba2 {[%clk 0:02:57.1]} 9... b6 {[%clk
0:03:02.1]} 10. Qe2 {[%clk 0:02:56.6]} 10... a6 {[%clk 0:03:02.7]} 11. Rd1
{[%clk 0:02:54.7]} 11... Rb8 {[%clk 0:03:01.9]} 12. d5 {[%clk 0:02:51.3]} 12...
cxd5 {[%clk 0:02:44.1]} 13. Nxd5 {[%clk 0:02:50.5]} 13... Nxd5 {[%clk
0:02:44.7]} 14. Bxd5 {[%clk 0:02:52.4]} 14... Nf6 {[%clk 0:02:42.9]} 15. c4
{[%clk 0:02:37.6]} 15... Nxd5 {[%clk 0:02:13.6]} 16. exd5 {[%clk 0:02:32.2]}
16... h6 {[%clk 0:01:51.8]} 17. b3 {[%clk 0:02:16]} 17... f5 {[%clk 0:01:52.3]}
18. Ba3 {[%clk 0:02:17]} 18... Bf6 {[%clk 0:01:33.6]} 19. Rac1 {[%clk
0:02:15.6]} 19... a5 {[%clk 0:01:29.7]} 20. Bb2 {[%clk 0:02:01]} 20... Qd7
{[%clk 0:01:25.5]} 21. Nd2 {[%clk 0:02:00.9]} 21... g5 {[%clk 0:01:19.5]} 22. f3
{[%clk 0:01:53.2]} 22... h5 {[%clk 0:01:16.4]} 23. Nb1 {[%clk 0:01:48.5]} 23...
Qh7 {[%clk 0:01:03]} 24. Nc3 {[%clk 0:01:44.6]} 24... g4 {[%clk 0:01:02.8]} 25.
fxg4 {[%clk 0:01:42.6]} 25... hxg4 {[%clk 0:01:04.7]} 26. hxg4 {[%clk
0:01:43.6]} 26... fxg4 {[%clk 0:01:01.3]} 27. Ne4 {[%clk 0:01:42.9]} 27... Bf5
{[%clk 0:00:50.7]} 28. Ng3 {[%clk 0:01:23.4]} 28... Bg6 {[%clk 0:00:51.8]} 29.
Qxg4 {[%clk 0:01:19.4]} 29... Kh8 {[%clk 0:00:52.9]} 30. Qe6 {[%clk 0:00:56.8]}
30... Bg5 {[%clk 0:00:31.7]} 31. Rc3 {[%clk 0:00:54.3]} 31... Rf6 {[%clk
0:00:31.8]} 32. Qg4 {[%clk 0:00:48.4]} 32... Bh4 {[%clk 0:00:30.3]} 33. Rf1
{[%clk 0:00:30.3]} 33... Rg8 {[%clk 0:00:19.2]} 34. Rxf6 {[%clk 0:00:22.9]}
34... Bxf6 {[%clk 0:00:21.1]} 35. Qe6 {[%clk 0:00:23.1]} 35... Bg7 {[%clk
0:00:16.1]} 36. Qxd6 {[%clk 0:00:21]} 36... Bd3 {[%clk 0:00:13]} 37. Qe6 {[%clk
0:00:16.2]} 37... Rf8 {[%clk 0:00:11.3]} 38. Rc1 {[%clk 0:00:11.5]} 1-0

[Event "*** Titled Tuesday 3|2 Blitz (Late)"]
[Site "Chess.com"]
[Date "2017.01.03"]
[Round "9"]
[White "jk13"]
[Black "severomorskij"]
[Result "0-1"]
[WhiteElo "2531"]
[BlackElo "2601"]
[TimeControl "180+2"]
[EndTime "18:52:07 PST"]
[Termination "severomorskij won by resignation"]

1. d4 {[%clk 0:03:02]} 1... Nf6 {[%clk 0:03:00.1]} 2. Bf4 {[%clk 0:03:03.5]}
2... c5 {[%clk 0:02:59.3]} 3. e3 {[%clk 0:03:04.5]} 3... Nd5 {[%clk 0:02:55.6]}
4. Bg3 {[%clk 0:03:04.7]} 4... Qb6 {[%clk 0:02:56.2]} 5. Nc3 {[%clk 0:02:56.3]}
5... Nxc3 {[%clk 0:02:53.4]} 6. bxc3 {[%clk 0:02:58.2]} 6... e6 {[%clk
0:02:33.1]} 7. Bd3 {[%clk 0:02:55.5]} 7... Nc6 {[%clk 0:02:30.6]} 8. Nf3 {[%clk
0:02:55.8]} 8... d5 {[%clk 0:02:26.2]} 9. O-O {[%clk 0:02:55.7]} 9... c4 {[%clk
0:02:27.2]} 10. Be2 {[%clk 0:02:56.3]} 10... Be7 {[%clk 0:02:23.4]} 11. e4
{[%clk 0:02:56.7]} 11... Qa5 {[%clk 0:02:16.9]} 12. Qe1 {[%clk 0:02:50.7]} 12...
O-O {[%clk 0:02:10.9]} 13. a4 {[%clk 0:02:49]} 13... Bd7 {[%clk 0:02:00.9]} 14.
Ne5 {[%clk 0:02:35.6]} 14... Nxe5 {[%clk 0:01:57.4]} 15. Bxe5 {[%clk 0:02:37.5]}
15... Bc6 {[%clk 0:01:53.5]} 16. Bf3 {[%clk 0:02:33.2]} 16... Rae8 {[%clk
0:01:45.2]} 17. exd5 {[%clk 0:02:30]} 17... Bxd5 {[%clk 0:01:37.4]} 18. Bxd5
{[%clk 0:02:30]} 18... Qxd5 {[%clk 0:01:35.5]} 19. Qb1 {[%clk 0:02:30.8]} 19...
a6 {[%clk 0:01:20]} 20. Qb6 {[%clk 0:02:28.6]} 20... Bd8 {[%clk 0:01:15.9]} 21.
Qb4 {[%clk 0:02:22.2]} 21... Ba5 {[%clk 0:01:14.4]} 22. Qa3 {[%clk 0:02:21.3]}
22... f6 {[%clk 0:01:14.8]} 23. Bg3 {[%clk 0:02:11.7]} 23... Rf7 {[%clk
0:01:15]} 24. Rab1 {[%clk 0:02:08.7]} 24... h5 {[%clk 0:01:15]} 25. h3 {[%clk
0:02:07.9]} 25... Kh7 {[%clk 0:01:15.3]} 26. Rfe1 {[%clk 0:01:55.4]} 26... g5
{[%clk 0:01:13.5]} 27. Re3 {[%clk 0:01:54.6]} 27... Rg7 {[%clk 0:01:06.3]} 28.
Qd6 {[%clk 0:01:37.6]} 28... Qxd6 {[%clk 0:01:04.9]} 29. Bxd6 {[%clk 0:01:39.5]}
29... Rd7 {[%clk 0:01:02.1]} 30. Bb4 {[%clk 0:01:38.5]} 30... Bc7 {[%clk
0:00:51.4]} 31. Rbe1 {[%clk 0:01:35.8]} 31... e5 {[%clk 0:00:48.4]} 32. dxe5
{[%clk 0:01:16.5]} 32... Rxe5 {[%clk 0:00:45.4]} 33. g3 {[%clk 0:01:10.1]} 33...
Rd2 {[%clk 0:00:40.3]} 34. Rxe5 {[%clk 0:00:33.3]} 34... Bxe5 {[%clk 0:00:40.6]}
35. Ba5 {[%clk 0:00:28]} 35... Rxc2 {[%clk 0:00:24]} 36. Rb1 {[%clk 0:00:28.6]}
36... Ra2 {[%clk 0:00:20.7]} 37. Rxb7+ {[%clk 0:00:28.9]} 37... Kg6 {[%clk
0:00:21.8]} 38. Bc7 {[%clk 0:00:24]} 38... Bxc3 {[%clk 0:00:20.6]} 39. Rb6
{[%clk 0:00:24.4]} 39... Bd4 {[%clk 0:00:20.5]} 40. Rc6 {[%clk 0:00:23.1]} 40...
c3 {[%clk 0:00:20.4]} 41. a5 {[%clk 0:00:18.5]} 41... Bxf2+ {[%clk 0:00:15.2]}
42. Kh1 {[%clk 0:00:20]} 42... Bd4 {[%clk 0:00:16.1]} 43. g4 {[%clk 0:00:20.4]}
43... hxg4 {[%clk 0:00:16.5]} 44. hxg4 {[%clk 0:00:21.7]} 44... c2 {[%clk
0:00:17.7]} 45. Bb6 {[%clk 0:00:18.4]} 45... Ra1+ {[%clk 0:00:15.4]} 46. Kg2
{[%clk 0:00:19.9]} 46... c1=Q {[%clk 0:00:16.6]} 47. Rxc1 {[%clk 0:00:20.7]}
47... Rxc1 {[%clk 0:00:17.7]} 48. Bxd4 {[%clk 0:00:22.3]} 48... Rc4 {[%clk
0:00:18.7]} 0-1

[Event "*** Titled Tuesday 3|2 Blitz (Late)"]
[Site "Chess.com"]
[Date "2017.01.03"]
[Round "9"]
[White "andresgv36"]
[Black "bugsbunny444"]
[Result "0-1"]
[WhiteElo "2273"]
[BlackElo "2342"]
[TimeControl "180+2"]
[EndTime "18:52:17 PST"]
[Termination "bugsbunny444 won by checkmate"]

1. Nf3 {[%clk 0:03:02]} 1... d5 {[%clk 0:03:00.5]} 2. d4 {[%clk 0:03:02.1]} 2...
e6 {[%clk 0:03:01.3]} 3. c4 {[%clk 0:03:03.6]} 3... c6 {[%clk 0:03:02.5]} 4. e3
{[%clk 0:03:00.2]} 4... Nf6 {[%clk 0:03:03.8]} 5. Nc3 {[%clk 0:03:00.6]} 5...
Nbd7 {[%clk 0:03:04.1]} 6. Qc2 {[%clk 0:03:00.7]} 6... Bd6 {[%clk 0:03:03.5]} 7.
e4 {[%clk 0:02:53.2]} 7... dxe4 {[%clk 0:02:49.7]} 8. Nxe4 {[%clk 0:02:55.1]}
8... Nxe4 {[%clk 0:02:50.8]} 9. Qxe4 {[%clk 0:02:57]} 9... c5 {[%clk 0:02:41.2]}
10. Bg5 {[%clk 0:02:48.9]} 10... Qa5+ {[%clk 0:02:36.8]} 11. Bd2 {[%clk
0:02:29.3]} 11... Qc7 {[%clk 0:02:25.5]} 12. Bd3 {[%clk 0:02:14.2]} 12... cxd4
{[%clk 0:02:13.4]} 13. Nxd4 {[%clk 0:02:11.5]} 13... Nc5 {[%clk 0:02:14.4]} 14.
Nb5 {[%clk 0:01:56.9]} 14... Qd7 {[%clk 0:01:45.2]} 15. Qd4 {[%clk 0:01:51.8]}
15... Nxd3+ {[%clk 0:01:35.2]} 16. Qxd3 {[%clk 0:01:52.7]} 16... Be5 {[%clk
0:01:28.8]} 17. Qa3 {[%clk 0:01:34.7]} 17... b6 {[%clk 0:01:11.6]} 18. Bc3
{[%clk 0:01:15]} 18... Bxc3+ {[%clk 0:01:08.8]} 19. bxc3 {[%clk 0:00:58.9]}
19... Qe7 {[%clk 0:01:02.7]} 20. Nd6+ {[%clk 0:00:59.5]} 20... Kf8 {[%clk
0:00:59.9]} 21. Rd1 {[%clk 0:00:41.4]} 21... Bb7 {[%clk 0:00:51.3]} 22. O-O
{[%clk 0:00:38.6]} 22... Bc6 {[%clk 0:00:44.9]} 23. c5 {[%clk 0:00:36.9]} 23...
h5 {[%clk 0:00:33.2]} 24. Rfe1 {[%clk 0:00:36.7]} 24... Qg5 {[%clk 0:00:29.9]}
25. Ne4 {[%clk 0:00:20.1]} 25... Bxe4 {[%clk 0:00:18.9]} 26. cxb6+ {[%clk
0:00:21]} 26... Qe7 {[%clk 0:00:20.6]} 27. Qxe7+ {[%clk 0:00:19.5]} 27... Kxe7
{[%clk 0:00:22.5]} 28. Rxe4 {[%clk 0:00:19.3]} 28... axb6 {[%clk 0:00:24]} 29.
a4 {[%clk 0:00:16.9]} 29... Rhc8 {[%clk 0:00:23.7]} 30. Rd3 {[%clk 0:00:09.9]}
30... b5 {[%clk 0:00:21.4]} 31. Red4 {[%clk 0:00:05.3]} 31... bxa4 {[%clk
0:00:20.5]} 32. Rd7+ {[%clk 0:00:06.3]} 32... Ke8 {[%clk 0:00:15.2]} 33. h4
{[%clk 0:00:06.4]} 33... a3 {[%clk 0:00:16.2]} 34. Rb7 {[%clk 0:00:03.5]} 34...
a2 {[%clk 0:00:17.6]} 35. Rdd7 {[%clk 0:00:04.7]} 35... a1=Q+ {[%clk 0:00:19]}
36. Kh2 {[%clk 0:00:05.6]} 36... Qxc3 {[%clk 0:00:12.6]} 37. Re7+ {[%clk
0:00:06.2]} 37... Kf8 {[%clk 0:00:14.1]} 38. Rxf7+ {[%clk 0:00:06.9]} 38... Kg8
{[%clk 0:00:15.7]} 39. Rfe7 {[%clk 0:00:06.3]} 39... Qe5+ {[%clk 0:00:12.3]} 40.
Kh3 {[%clk 0:00:06.5]} 40... Ra3+ {[%clk 0:00:12.7]} 41. g3 {[%clk 0:00:07.6]}
41... Qf5+ {[%clk 0:00:12.5]} 42. Kg2 {[%clk 0:00:07.8]} 42... Qf3+ {[%clk
0:00:13.1]} 43. Kh3 {[%clk 0:00:08.4]} 43... Qh1# {[%clk 0:00:13.4]} 0-1